Cogmind - Beta 10.1 @@@ ROGUE MODE // 2020.10.28 @ 19:10:57 Player: Aldgillis Result: Destroyed by G-47 Trooper with Particle Gun Performance ------------- Evolutions (0) 0 Regions Visited (2) 400 Robots Destroyed (10) 50 Value Destroyed (245) 245 Prototype IDs (0) 0 Alien Tech Used (0) 0 Bonus (0) 0 TOTAL SCORE: 695 Bonus ------- None Cogmind --------- Core Integrity 0/250 Matter 300/300 Energy 100/100 System Corruption 0% Temperature Cool (9) Movement Core (300) Ox5 Location -10/Mines Parts ------- > --- POWER (1) -------- (None) > --- PROPULSION (2) --- (None) > --- UTILITY (2) ------ Large Storage Unit Hacking Suite > --- WEAPON (2) ------- (None) > --- INVENTORY (10) --- Light Ion Engine Improved Sensor Array Terrain Scanner Bomb Drone Bay Peak State ------------ > --- POWER ------------ Ion Engine > --- PROPULSION ------- Light Treads > --- UTILITY ---------- Large Storage Unit Hacking Suite > --- WEAPON ----------- Medium Laser Datajack > --- INVENTORY -------- Light Ion Engine Light Ion Engine Improved Sensor Array Terrain Scanner Bomb Drone Bay [Rating: 9] Favorites ----------- Power Ion Engine Engine Ion Engine Propulsion Light Treads Treads Light Treads Hover Unit Hover Unit Utility Large Storage Unit Device Improved Sensor Array Storage Large Storage Unit Hackware Hacking Suite Weapon Medium Laser Energy Gun Medium Laser Ballistic Gun Light Assault Rifle Special Melee Weapon Datajack Build | -11 -10 -10 ------- Run | Scr Mat Min Slots Evolved . | . . . Power . | . . . Propulsion . | . . . Utility . | . . . Weapon . | . . . Parts Attached 15 | 6 7 2 Power 3 | 2 . 1 Engine 3 | 2 . 1 Core . | . . . Reactor . | . . . Propulsion 4 | 1 3 . Treads 3 | 1 2 . Leg . | . . . Wheel . | . . . Hover 1 | . 1 . Flight . | . . . Utility 4 | 1 3 . Device 1 | . 1 . Storage 2 | 1 1 . Processor . | . . . Hackware 1 | . 1 . Protection . | . . . Artifact . | . . . Weapon 4 | 2 1 1 Energy Gun 2 | 1 1 . Energy Cannon . | . . . Ballistic Gun 1 | 1 . . Ballistic Cannon . | . . . Launcher . | . . . Special Weapon . | . . . Impact Weapon . | . . . Slashing Weapon . | . . . Piercing Weapon . | . . . Special Melee Weapon 1 | . . 1 Unidentified Prototypes . | . . . Parts Lost 9 | . 4 5 Power 2 | . . 2 Propulsion 3 | . 2 1 Utility . | . . . Weapon 4 | . 2 2 Highest Loss Streak 5 | . 2 5 Average Slot Usage (%) 79 | . 80 78 Engine 14 | . 14 14 Treads 16 | . 16 14 Hover 2 | . 3 . Device 9 | . 11 . Storage 14 | . 14 14 Hackware 4 | . 1 14 Energy Gun 10 | . 10 11 Ballistic Gun 6 | . 7 . Special Melee Weapon 1 | . . 9 Naked Turns . | . . . Heaviest Build 24 | 11 24 24 Greatest Support 40 | 20 40 20 Greatest Overweight (x) 1 | . 1 1 Average Overweight (x) . | . . . Largest Inventory Capacity 10 | 6 10 10 Average Capacity 8 | 5 8 10 Most Carried 6 | 3 6 6 Average Carried 5 | 1 5 5 Final Capacity 10 | 6 10 10 Final Carried 5 | 3 5 5 Class Distribution -------------------- 100% | Mutant Dominant Class ---------------- Mutant | -10/Materials Mutant | -10/Mines Resources | -11 -10 -10 ----------- Run | Scr Mat Min Matter Collected 341 | 178 163 . Remotely . | . . . Salvage Created 294 | . 294 . Parts 26 | . 26 . Haulers Intercepted . | . . . Recyclers Shooed 1 | . 1 . Parts Field Recycled . | . . . Retrieved Matter . | . . . Parts Self-Destructed . | . . . Prevented . | . . . Kills | -11 -10 -10 ------- Run | Scr Mat Min Combat Hostiles Destroyed 8 | . 8 . Guns 8 | . 8 . Classes Destroyed 4 | . 4 . Operator 1 | . 1 . Watcher 1 | . 1 . Swarmer 3 | . 3 . Grunt 5 | . 5 . Best Kill Streak 3 | . 3 . Combat Bots Only 3 | . 3 . Max Kills in Single Turn 1 | . 1 . Gunslinging . | . . . Exploded . | . . . Melee . | . . . Uniques/NPCs Destroyed . | . . . Combat | -11 -10 -10 -------- Run | Scr Mat Min Damage Taken 932 | . 640 292 Core 250 | . 169 81 Absorbed by Shields . | . . . Core Remaining (%) 100 | 100 . . Volleys Fired 81 | . 72 9 Largest 2 | . 2 1 Hottest 60 | . 60 50 Shots Fired 96 | . 87 9 Gun 96 | . 87 9 Cannon . | . . . Launcher . | . . . Special . | . . . Kinetic 41 | . 41 . Thermal 55 | . 46 9 Explosive . | . . . Electromagnetic . | . . . Robot Hit Streak 21 | . 21 2 Robot Miss Streak 3 | . 3 2 Penetration Max . | . . . Secondary Targets . | . . . Shots Hit Robots 60 | . 55 5 Core Hits 26 | . 21 5 Critical Hits . | . . . Critical Kills . | . . . Critical Parts Destroyed . | . . . Melee Attacks . | . . . Impact . | . . . Slashing . | . . . Piercing . | . . . Sneak Attacks . | . . . Combat Hostiles . | . . . Follow-up Attacks . | . . . Damage Inflicted 553 | . 470 83 Guns 544 | . 470 74 Cannons . | . . . Explosions . | . . . Melee . | . . . Ramming 9 | . . 9 Kinetic 230 | . 230 . Thermal 314 | . 240 74 Explosive . | . . . Electromagnetic . | . . . Impact . | . . . Slashing . | . . . Piercing . | . . . Highest Corruption . | . . . Average Corruption . | . . . Corruption Purged . | . . . Overload Shots . | . . . Overflow Damage . | . . . Projectiles . | . . . Explosions . | . . . Melee . | . . . Knockbacks . | . . . Impact . | . . . Kinetic . | . . . Secondary . | . . . Self-Inflicted Damage . | . . . Shots . | . . . Rammed 7 | . . 7 Targets Rammed 7 | . . 7 Kicked . | . . . Crushed . | . . . Highest Temperature 189 | . 189 127 Average Temperature 48 | . 45 63 Received Heat Transfer 417 | . 249 168 Siege Activations . | . . . Robots Corrupted . | . . . Combat Hostiles . | . . . Parts Fried . | . . . Impact Corruptions . | . . . Robots Melted . | . . . Combat Hostiles . | . . . Parts Melted . | . . . Heat Transferred 902 | . 680 222 Parts Sabotaged . | . . . Parts Stolen . | . . . Parts Stripped . | . . . Power Chain Reactions . | . . . Missiles Intercepted . | . . . Alert | -11 -10 -10 ------- Run | Scr Mat Min Peak Influence 232 | . 232 12 Initial 12 | . . 12 Average 68 | . 92 8 Maximum Alert Level 1 | . 1 . Low Security (%) 87 | 100 82 100 Level 1 12 | . 17 . Level 2 . | . . . Level 3 . | . . . Level 4 . | . . . Level 5 . | . . . High Security . | . . . Max Security . | . . . Squads Dispatched 4 | . 4 . Investigation 1 | . 1 . Extermination . | . . . Reinforcement 3 | . 3 . Assault . | . . . Garrison . | . . . Intercept . | . . . Construction Impeded . | . . . Haulers Reinforced . | . . . Stealth | -11 -10 -10 --------- Run | Scr Mat Min Distress Signals 2 | . 2 . Communications Jammed . | . . . Distress Signals . | . . . Times Spotted 25 | . 23 2 Peak Tracking Total 6 | . 6 2 Tactical Retreats . | . . . Traps | -11 -10 -10 ------- Run | Scr Mat Min Traps Triggered 1 | . 1 . Indirectly . | . . . Trap Hack Attempts . | . . . Triggered . | . . . Disarmed . | . . . Reprogrammed . | . . . Reused . | . . . Traps Extracted . | . . . Installed . | . . . Triggered . | . . . Machines | -11 -10 -10 ---------- Run | Scr Mat Min Machines Disabled . | . . . Max in Single Turn . | . . . Machines Sabotaged . | . . . Garrisons Compromised . | . . . Overloaded Fab Kills . | . . . Fab Network Shutdowns . | . . . Hacking | -11 -10 -10 --------- Run | Scr Mat Min Machines Accessed 2 | . 1 1 Terminals 1 | . 1 . Fabricators . | . . . Repair Stations . | . . . Recycling Units . | . . . Scanalyzers . | . . . Garrison Access . | . . . Total Hacks 3 | . 2 1 Successful 2 | . 1 1 Failed 1 | . 1 . Catastrophic . | . . . Database Lockouts . | . . . Manual 1 | . 1 . Terminals 2 | . 2 . Fabricators . | . . . Repair Stations . | . . . Recycling Units . | . . . Scanalyzers . | . . . Garrison Access . | . . . Terminal Hacks 2 | . 1 1 Robot Analysis 1 | . 1 . Open Door 1 | . . 1 Fabricator Hacks . | . . . Repair Station Hacks . | . . . Recycling Unit Hacks . | . . . Scanalyzer . | . . . Garrison Access Hacks . | . . . Unauthorized Hacks . | . . . Terminals . | . . . Fabricators . | . . . Repair Stations . | . . . Recycling Units . | . . . Scanalyzers . | . . . Garrison Access . | . . . Data Cores Recovered . | . . . Used . | . . . Hacking Detections 2 | . 2 . Full Trace Events . | . . . Feedback Events . | . . . Feedback Blocked . | . . . Robot Schematics Acquired . | . . . Robots Built . | . . . Matter . | . . . Time . | . . . Total Robot Build Rating . | . . . Part Schematics Acquired . | . . . Parts Built . | . . . Matter . | . . . Time . | . . . Total Part Build Rating . | . . . Parts Repaired . | . . . Time . | . . . Parts Recycled . | . . . Recycled Matter . | . . . Retrieved Matter . | . . . Retrieved Components . | . . . Parts Scanalyzed . | . . . Part Schematics Acquired . | . . . Parts Damaged . | . . . Bothacking | -11 -10 -10 ------------ Run | Scr Mat Min Used RIF Installer . | . . . Robots Hacked . | . . . Non-combat . | . . . Combat . | . . . Robot Hacks Applied . | . . . Relay Couplers Released . | . . . Robots Rewired . | . . . Allies Hacked . | . . . Hacks Repelled . | . . . Allies | -11 -10 -10 -------- Run | Scr Mat Min Total Allies . | . . . Largest Group . | . . . Highest-Rated Group . | . . . Highest-Rated Ally . | . . . Total Orders . | . . . Ally Attacks . | . . . Total Damage . | . . . Kills . | . . . Allies Corrupted . | . . . Allies Melted . | . . . Intel | -11 -10 -10 ------- Run | Scr Mat Min Robot Analysis Total 1 | . 1 . Derelict Logs Recovered . | . . . Drone Launches . | . . . Drone Recoveries . | . . . Exploration | -11 -10 -10 ------------- Run | Scr Mat Min Turns Passed 705 | 72 510 123 Spaces Moved 292 | 41 202 49 Core 6 | 6 . . Treads 227 | 35 143 49 Legs . | . . . Wheels . | . . . Hover 59 | . 59 . Flight . | . . . Fastest Speed 50 | 50 140 160 Average Speed 163 | 143 163 178 Slowest Speed 180 | 160 180 180 Overloaded Moves . | . . . Propulsion Burnouts . | . . . Robots Hopped . | . . . Cave-ins Triggered . | . . . Exploration Rate (%) 19 | 5 38 15 Regions Visited 2 Branch Regions 1 Pre-discovered Areas . | . . . Known Exits Taken . | . . . Unknown Exits Taken 2 | 1 1 . Scrap Searched . | . . . Spaces Dug . | . . . Terrain Destroyed . | . . . Melee . | . . . Projectile . | . . . AOE . | . . . Terrain Rammed . | . . . Walls Destroyed . | . . . Machines Disabled . | . . . Actions | -11 -10 -10 --------- Run | Scr Mat Min Total 427 | 54 302 71 Wait 20 | . 17 3 Move 290 | 40 201 49 Hop . | . . . Pick Up 13 | 8 4 1 Fast Attach 2 | . 2 . Attach 9 | 5 2 2 Detach . | . . . Swap 4 | 1 3 . Drop 1 | . 1 . Fire 81 | . 72 9 Melee . | . . . Ram 2 | . . 2 Kick . | . . . Crush 5 | . . 5 Escape Stasis . | . . . Rewire . | . . . Trap . | . . . Miscellaneous . | . . . Route ------- -11/Scrapyard -10/Materials -10/Mines (discovered 1 exit: [*Mat]) History --------- Turn | Location | Event 30 | -11/Scrapyard | Discovered new exit (range 16) 73 | -11/Scrapyard | Entered Materials 321 | -10/Materials | Build established: Mutant 350 | -10/Materials | Core integrity fell below 50% 556 | -10/Materials | Discovered new exit (range 11) 583 | -10/Materials | Entered Mines 594 | -10/Mines | Found the Drone Emporium 605 | -10/Mines | Found Prototype Device 662 | -10/Mines | Discovered new exit (range 7) 699 | -10/Mines | Core integrity fell below 20% 706 | -10/Mines | Destroyed by G-47 Trooper with Particle Gun Last Messages --------------- Sealed Doors opened. 5B-28P(g): "Well that was anticlimactic. Heard you outside and thought you were from the Merchants Guild. I haven't even officially opened my Drone Emporium yet but am totally ready to tell them where they can shove that C&D." 5B-28P(g): "I'm a fan of the free market. Free drones for all! No strings attached!" Acquired Prototype Device. K-01 Serf collects debris. EXIT=FOUND Datajack destroyed. K-01 Serf collects debris. Ion Engine destroyed. K-01 Serf collects debris. Med. Laser destroyed. K-01 Serf collects debris. Slammed into G-47 Trooper. Lgt. Ion Engine destroyed. Lgt. Treads destroyed. Slammed into G-47 Trooper. Map ----- +----------------------------------------------------+ | ??#" "#???????????????????????? | | ??#" "#???????????????????????? | | ??## ##???????????????????????? | | ??### ###???????????????????????? | | ??# X #???????????????????????? | | ??# ####????????????????????? | | ??# #????????????????????? | | ??# #????????????????????? | | ??# #????????????????????? | | ??# #?????##?????????????? | | ??# #???? ##????????????? | | ??# #???? #????????????? | | ??# #??? #????????????? | | ??# #??# ##???????????? | | ??# #?# ##??????????? | | ??# #? #??????????? | | ??#### ##### #??????????? | | ?????# #???? #???????????? | | ?????# ##### #????? #???????? | | ?????# #????# #???????? | | ?????# ##?? #???????? | | ?????###### ## ## ####????? | | ??????????# #??? ?????? | | ??????????# #?? #???????? | | ???????#### ### ## ?????????? | | ???????#g@g% #?????????????? | | ???????# ###### #?????????????? | | ???????# #?????# ##?????????????? | | ??????? ??????###??????????????? | | ?????? ???????????????????????? | | ?????# ??????????????????????? | | ?????# ??????????????????????? | | ?????# < ?????????????????????? | | ?????# ?????????????????????? | | ?????########????????????????????? | | ?????????????????????????????????? | | ?????????????????????????????????? | | ?????????????????????????????????? | | ?????????????????????????????????? | | ?????????????????????????????????? | | ?????????????????????????????????? | | ?????????????????????????????????? | | ?????????????????????????????????? | | ?????????????????????????????????? | | ?????????????????????????????????? | | ?????????????????????????????????? | | ?????????????????????????????????? | | ?????????????????????????????????? | | ?????????????????????????????????? | | ?????????????????????????????????? | +----------------------------------------------------+ Best States ------------- Heat Dissipation 25 Energy Generation 10 Energy Capacity 250 Matter Stores 300 Matter Capacity 300 Sight Range 16 Robot Scan Range 13 Terrain Scan Density 10 Evasion (%) 40 Recoil Reduction 2 Offensive Hacking 10 Item Schematics ----------------- None Robot Schematics ------------------ None Fabricated ------------ Nothing Alien Tech Used ----------------- None Achievements -------------- None Challenges ------------ None Game ------ Seed ProtonStormAutogun Manual? 0 Play Time 00:11:56 Cumulative 39.2 hours Start 2020.10.28 @ 18:58:43 End 2020.10.28 @ 19:10:57 Sessions 1 Manual Loads 0 Difficulty Rogue Special Mode None Game No. 44 Rogue 44 Adventurer 0 Explorer 0 Win Type - Total 1 Types 1/0/0/0/0/0/0/0/0 Lore% 18 Gallery% 40 Achievement% 30 Wizard Run 0 Options --------- ASCII 0 Keyboard 0 Movement Mouse Keybinds 0 Fullscreen 1 Font 18/X11 Map View 76x50 Tactical HUD 0 Map Filters NONE Filters NONE Steam 1 RUN: da8519ac-9f74-4f6c-9a16-de2900100012